[Event "*** SCC Grand Prix: Titled Tuesday Blitz"]
[Site "Chess.com"]
[Date "2020.06.23"]
[Round "10"]
[White "Siniauski"]
[Black "fabianvivasz"]
[Result "1-0"]
[WhiteElo "2481"]
[BlackElo "2277"]
[TimeControl "180+1"]
[EndTime "11:57:13 PDT"]
[Termination "Siniauski won by resignation"]

1. e4 {[%clk 0:03:00.8]} 1... e5 {[%clk 0:02:59.3]} 2. Nf3 {[%clk 0:03:01]} 2...
Nc6 {[%clk 0:02:59.6]} 3. Bc4 {[%clk 0:03:00.1]} 3... Nf6 {[%clk 0:02:59.3]} 4.
d3 {[%clk 0:02:59.3]} 4... Be7 {[%clk 0:02:58.5]} 5. c3 {[%clk 0:02:59.1]} 5...
O-O {[%clk 0:02:54.9]} 6. O-O {[%clk 0:02:59]} 6... d5 {[%clk 0:02:54.1]} 7.
exd5 {[%clk 0:02:53.5]} 7... Nxd5 {[%clk 0:02:55]} 8. Nbd2 {[%clk 0:02:51.4]}
8... Bg4 {[%clk 0:02:49.1]} 9. h3 {[%clk 0:02:51.3]} 9... Bh5 {[%clk 0:02:48.6]}
10. Ne4 {[%clk 0:02:50.8]} 10... f5 {[%clk 0:02:33.8]} 11. Ng3 {[%clk
0:02:47.4]} 11... Be8 {[%clk 0:02:03.5]} 12. Qb3 {[%clk 0:02:29.6]} 12... Na5
{[%clk 0:01:56.8]} 13. Bxd5+ {[%clk 0:02:28.3]} 13... Kh8 {[%clk 0:01:57.1]} 14.
Qc2 {[%clk 0:01:37.5]} 14... Qxd5 {[%clk 0:01:55.4]} 15. c4 {[%clk 0:01:28.2]}
15... Qd6 {[%clk 0:01:45.2]} 16. b3 {[%clk 0:01:24]} 16... Nc6 {[%clk 0:01:37]}
17. Bb2 {[%clk 0:01:19.3]} 17... Nb4 {[%clk 0:01:22.2]} 18. Qc3 {[%clk
0:01:06.5]} 18... Nxd3 {[%clk 0:01:14.2]} 19. Rad1 {[%clk 0:01:01.8]} 19... Rd8
{[%clk 0:00:55.5]} 20. Ne1 {[%clk 0:00:56.3]} 20... Nxb2 {[%clk 0:00:29.1]} 21.
Rxd6 {[%clk 0:00:55.4]} 21... Rxd6 {[%clk 0:00:25.9]} 22. Qxb2 {[%clk
0:00:55.1]} 22... e4 {[%clk 0:00:22.7]} 23. Nc2 {[%clk 0:00:48.7]} 23... Bf6
{[%clk 0:00:15.3]} 24. Qa3 {[%clk 0:00:45.8]} 24... Bg6 {[%clk 0:00:15.1]} 25.
Ne2 {[%clk 0:00:30.8]} 25... Rfd8 {[%clk 0:00:12.8]} 26. Ne3 {[%clk 0:00:30.7]}
26... Be5 {[%clk 0:00:11.2]} 27. Qa5 {[%clk 0:00:24.2]} 27... Re6 {[%clk
0:00:09.1]} 28. Nd5 {[%clk 0:00:17.7]} 28... f4 {[%clk 0:00:07.4]} 29. Nexf4
{[%clk 0:00:17.7]} 29... Bxf4 {[%clk 0:00:07.5]} 30. Nxf4 {[%clk 0:00:18.6]}
30... Rf6 {[%clk 0:00:06.2]} 31. Nxg6+ {[%clk 0:00:17.8]} 31... Rxg6 {[%clk
0:00:07.1]} 32. Qxa7 {[%clk 0:00:17.9]} 1-0

[Event "*** SCC Grand Prix: Titled Tuesday Blitz"]
[Site "Chess.com"]
[Date "2020.06.23"]
[Round "10"]
[White "Richarzard69"]
[Black "LogoCzar"]
[Result "1/2-1/2"]
[WhiteElo "2301"]
[BlackElo "2436"]
[TimeControl "180+1"]
[EndTime "11:57:14 PDT"]
[Termination "Game drawn by repetition"]

1. Nf3 {[%clk 0:03:00.9]} 1... c5 {[%clk 0:02:59.6]} 2. c4 {[%clk 0:03:01]} 2...
Nf6 {[%clk 0:02:59]} 3. Nc3 {[%clk 0:03:01.3]} 3... e6 {[%clk 0:02:58.9]} 4. g3
{[%clk 0:03:02]} 4... b6 {[%clk 0:02:59.3]} 5. Bg2 {[%clk 0:03:01.9]} 5... Bb7
{[%clk 0:02:59.6]} 6. O-O {[%clk 0:03:02.5]} 6... Be7 {[%clk 0:02:58.9]} 7. b3
{[%clk 0:03:01.8]} 7... O-O {[%clk 0:02:58.4]} 8. Bb2 {[%clk 0:03:02.1]} 8... d5
{[%clk 0:02:58]} 9. cxd5 {[%clk 0:03:01.8]} 9... Nxd5 {[%clk 0:02:58.9]} 10.
Nxd5 {[%clk 0:02:59.6]} 10... Bxd5 {[%clk 0:02:58.5]} 11. Rc1 {[%clk 0:02:54.1]}
11... Nc6 {[%clk 0:02:57.2]} 12. d4 {[%clk 0:02:35.5]} 12... Bf6 {[%clk
0:02:54.1]} 13. Qd2 {[%clk 0:02:35.6]} 13... Nxd4 {[%clk 0:02:49]} 14. Nxd4
{[%clk 0:02:27.7]} 14... Bxd4 {[%clk 0:02:48.2]} 15. Bxd4 {[%clk 0:01:58.5]}
15... Bxg2 {[%clk 0:02:45.6]} 16. Kxg2 {[%clk 0:01:55.7]} 16... Qd5+ {[%clk
0:02:44.9]} 17. f3 {[%clk 0:01:46.8]} 17... cxd4 {[%clk 0:02:43.8]} 18. Rc4
{[%clk 0:01:36.3]} 18... Rfd8 {[%clk 0:02:41.2]} 19. Rfc1 {[%clk 0:01:34.7]}
19... e5 {[%clk 0:02:33.9]} 20. Qd3 {[%clk 0:01:28.4]} 20... g6 {[%clk
0:02:32.4]} 21. g4 {[%clk 0:01:25.2]} 21... Rd7 {[%clk 0:02:29.1]} 22. h4 {[%clk
0:01:20.6]} 22... Re8 {[%clk 0:02:25.8]} 23. Rc8 {[%clk 0:01:18]} 23... Rxc8
{[%clk 0:02:21.1]} 24. Rxc8+ {[%clk 0:01:18.9]} 24... Kg7 {[%clk 0:02:21.3]} 25.
h5 {[%clk 0:01:12.4]} 25... Re7 {[%clk 0:02:13.6]} 26. Qd2 {[%clk 0:00:59.9]}
26... h6 {[%clk 0:02:08.5]} 27. hxg6 {[%clk 0:00:56.7]} 27... fxg6 {[%clk
0:02:07]} 28. g5 {[%clk 0:00:50.2]} 28... h5 {[%clk 0:02:05.4]} 29. Qc1 {[%clk
0:00:41]} 29... e4 {[%clk 0:01:55.9]} 30. Qf4 {[%clk 0:00:28.4]} 30... exf3+
{[%clk 0:01:55.8]} 31. exf3 {[%clk 0:00:19.7]} 31... Rf7 {[%clk 0:01:54]} 32.
Rc7 {[%clk 0:00:16.1]} 32... Rxc7 {[%clk 0:01:46.6]} 33. Qxc7+ {[%clk 0:00:17]}
33... Qf7 {[%clk 0:01:46.6]} 34. Qe5+ {[%clk 0:00:17]} 34... Kh7 {[%clk
0:01:45.3]} 35. Qxd4 {[%clk 0:00:17.2]} 35... Qe7 {[%clk 0:01:44.5]} 36. f4
{[%clk 0:00:14.2]} 36... Qe2+ {[%clk 0:01:44]} 37. Kg1 {[%clk 0:00:14.8]} 37...
Qg4+ {[%clk 0:01:37.9]} 38. Kf2 {[%clk 0:00:14.7]} 38... Qe6 {[%clk 0:01:33.4]}
39. Kg3 {[%clk 0:00:13.4]} 39... a5 {[%clk 0:01:30.1]} 40. Kf2 {[%clk
0:00:12.6]} 40... h4 {[%clk 0:01:29.1]} 41. Qd8 {[%clk 0:00:09.9]} 41... Qf7
{[%clk 0:01:20.7]} 42. Qd6 {[%clk 0:00:06.5]} 42... Qb7 {[%clk 0:01:17.7]} 43.
Qe5 {[%clk 0:00:05.1]} 43... h3 {[%clk 0:01:14.1]} 44. Kg3 {[%clk 0:00:04.9]}
44... Qg2+ {[%clk 0:00:57.2]} 45. Kh4 {[%clk 0:00:05.6]} 45... Qf2+ {[%clk
0:00:48.4]} 46. Kxh3 {[%clk 0:00:06]} 46... Qf3+ {[%clk 0:00:48.6]} 47. Kh2
{[%clk 0:00:06.1]} 47... Qf2+ {[%clk 0:00:49.1]} 48. Kh3 {[%clk 0:00:06.8]}
48... Qf3+ {[%clk 0:00:49.4]} 49. Kh2 {[%clk 0:00:07.3]} 49... Qf2+ {[%clk
0:00:49.9]} 50. Kh3 {[%clk 0:00:07.7]} 1/2-1/2

[Event "*** SCC Grand Prix: Titled Tuesday Blitz"]
[Site "Chess.com"]
[Date "2020.06.23"]
[Round "10"]
[White "NormWeinstein"]
[Black "davigator"]
[Result "1-0"]
[WhiteElo "2496"]
[BlackElo "2293"]
[TimeControl "180+1"]
[EndTime "11:57:14 PDT"]
[Termination "NormWeinstein won by checkmate"]

1. e4 {[%clk 0:03:00.9]} 1... c5 {[%clk 0:02:59.5]} 2. Nf3 {[%clk 0:03:00.8]}
2... Nc6 {[%clk 0:02:59.2]} 3. Nc3 {[%clk 0:03:01.2]} 3... Nf6 {[%clk
0:02:57.3]} 4. e5 {[%clk 0:03:00.3]} 4... Ng4 {[%clk 0:02:57.4]} 5. Qe2 {[%clk
0:03:00.7]} 5... Qc7 {[%clk 0:02:56.2]} 6. Nd5 {[%clk 0:03:00.4]} 6... Qb8
{[%clk 0:02:56.6]} 7. d4 {[%clk 0:03:00.4]} 7... e6 {[%clk 0:02:56]} 8. h3
{[%clk 0:02:58.8]} 8... exd5 {[%clk 0:02:54.3]} 9. hxg4 {[%clk 0:02:58.2]} 9...
cxd4 {[%clk 0:02:54.4]} 10. Bf4 {[%clk 0:02:53.6]} 10... b5 {[%clk 0:02:53.7]}
11. O-O-O {[%clk 0:02:51.3]} 11... Qb6 {[%clk 0:02:53.7]} 12. g3 {[%clk
0:02:45.8]} 12... Bb7 {[%clk 0:02:39.6]} 13. Qxb5 {[%clk 0:02:29.6]} 13... Bc5
{[%clk 0:02:30.4]} 14. Qxb6 {[%clk 0:02:18.9]} 14... Bxb6 {[%clk 0:02:28.1]} 15.
Bd3 {[%clk 0:02:16.6]} 15... h6 {[%clk 0:02:27]} 16. a3 {[%clk 0:02:14.8]} 16...
O-O-O {[%clk 0:02:21.5]} 17. Kb1 {[%clk 0:02:03.6]} 17... Rde8 {[%clk 0:02:19]}
18. Rhe1 {[%clk 0:02:02.1]} 18... g5 {[%clk 0:02:12.3]} 19. Bd2 {[%clk
0:02:00.1]} 19... Re7 {[%clk 0:02:11.3]} 20. Bb5 {[%clk 0:01:37.6]} 20... Rhe8
{[%clk 0:02:09.1]} 21. Bxc6 {[%clk 0:01:37]} 21... Bxc6 {[%clk 0:02:09.6]} 22.
Bb4 {[%clk 0:01:36.3]} 22... Re6 {[%clk 0:02:10.2]} 23. Bd6 {[%clk 0:01:33.9]}
23... Kd8 {[%clk 0:02:05.9]} 24. Rh1 {[%clk 0:01:19.9]} 24... f6 {[%clk
0:02:04.9]} 25. Rxh6 {[%clk 0:01:14.4]} 25... fxe5 {[%clk 0:02:04.7]} 26. Rxe6
{[%clk 0:01:13.4]} 26... dxe6 {[%clk 0:01:57.7]} 27. Bxe5 {[%clk 0:00:59.5]}
27... Rf8 {[%clk 0:01:56.9]} 28. Nxd4 {[%clk 0:00:59.3]} 28... Bd7 {[%clk
0:01:55.8]} 29. f4 {[%clk 0:00:58.4]} 29... Ke7 {[%clk 0:01:51.7]} 30. Rh1
{[%clk 0:00:54.6]} 30... Rf7 {[%clk 0:01:51]} 31. c3 {[%clk 0:00:42.9]} 31...
Ba4 {[%clk 0:01:43.9]} 32. Rh6 {[%clk 0:00:37.4]} 32... Bxd4 {[%clk 0:01:43.8]}
33. cxd4 {[%clk 0:00:35.6]} 33... Bb3 {[%clk 0:01:43.4]} 34. Kc1 {[%clk
0:00:24.8]} 34... Bc4 {[%clk 0:01:43]} 35. Kd2 {[%clk 0:00:23.6]} 35... Ke8
{[%clk 0:01:42.8]} 36. Rxe6+ {[%clk 0:00:21.2]} 36... Kf8 {[%clk 0:01:36.5]} 37.
Rh6 {[%clk 0:00:17.8]} 37... gxf4 {[%clk 0:01:32.7]} 38. gxf4 {[%clk 0:00:16.9]}
38... Ke7 {[%clk 0:01:30.1]} 39. g5 {[%clk 0:00:16.3]} 39... Rf8 {[%clk
0:01:27.3]} 40. g6 {[%clk 0:00:15.1]} 40... Rg8 {[%clk 0:01:26.8]} 41. f5 {[%clk
0:00:13.9]} 41... Kd7 {[%clk 0:01:21.3]} 42. f6 {[%clk 0:00:13.3]} 42... Ke6
{[%clk 0:01:21.2]} 43. f7 {[%clk 0:00:13]} 43... Rf8 {[%clk 0:01:21.1]} 44. Bg7
{[%clk 0:00:12.4]} 44... Rxf7 {[%clk 0:01:19.9]} 45. gxf7+ {[%clk 0:00:12.3]}
45... Kxf7 {[%clk 0:01:20.8]} 46. Be5 {[%clk 0:00:12.1]} 46... a6 {[%clk
0:01:20.2]} 47. Rb6 {[%clk 0:00:11.6]} 47... Ke7 {[%clk 0:01:20.2]} 48. Kc3
{[%clk 0:00:12]} 48... Kd7 {[%clk 0:01:19.9]} 49. Kb4 {[%clk 0:00:12.4]} 49...
Kc8 {[%clk 0:01:19.1]} 50. Kc5 {[%clk 0:00:12.7]} 50... Kd7 {[%clk 0:01:19.7]}
51. b3 {[%clk 0:00:12.6]} 51... Bb5 {[%clk 0:01:18.2]} 52. a4 {[%clk 0:00:12.2]}
52... Bd3 {[%clk 0:01:17.1]} 53. b4 {[%clk 0:00:12.5]} 53... Be4 {[%clk
0:01:16.9]} 54. Rxa6 {[%clk 0:00:11.2]} 54... Ke7 {[%clk 0:01:16.6]} 55. Rd6
{[%clk 0:00:10.4]} 55... Bf3 {[%clk 0:01:15.2]} 56. b5 {[%clk 0:00:10.6]} 56...
Bd1 {[%clk 0:01:14.4]} 57. b6 {[%clk 0:00:10.2]} 57... Bxa4 {[%clk 0:01:14.2]}
58. b7 {[%clk 0:00:10.4]} 58... Be8 {[%clk 0:01:13.5]} 59. b8=Q {[%clk
0:00:09.5]} 59... Bd7 {[%clk 0:01:13.6]} 60. Qc7 {[%clk 0:00:09.3]} 60... Kf8
{[%clk 0:01:13]} 61. Rxd7 {[%clk 0:00:09.4]} 61... Kg8 {[%clk 0:01:12.2]} 62.
Kxd5 {[%clk 0:00:09.8]} 62... Kf8 {[%clk 0:01:11.2]} 63. Ke4 {[%clk 0:00:10.1]}
63... Kg8 {[%clk 0:01:10.8]} 64. d5 {[%clk 0:00:10.6]} 64... Kf8 {[%clk
0:01:11.3]} 65. d6 {[%clk 0:00:10.9]} 65... Kg8 {[%clk 0:01:12.2]} 66. Re7
{[%clk 0:00:10.6]} 66... Kf8 {[%clk 0:01:13.1]} 67. Kf5 {[%clk 0:00:10.2]} 67...
Kg8 {[%clk 0:01:14]} 68. Qd8# {[%clk 0:00:09.8]} 1-0

[Event "*** SCC Grand Prix: Titled Tuesday Blitz"]
[Site "Chess.com"]
[Date "2020.06.23"]
[Round "10"]
[White "Ural_bogatyr"]
[Black "zala02"]
[Result "1-0"]
[WhiteElo "2324"]
[BlackElo "2182"]
[TimeControl "180+1"]
[EndTime "11:57:14 PDT"]
[Termination "Ural_bogatyr won on time"]

1. e4 {[%clk 0:03:00.9]} 1... c5 {[%clk 0:02:54.4]} 2. Nf3 {[%clk 0:03:00.7]}
2... Nc6 {[%clk 0:02:54.1]} 3. d4 {[%clk 0:03:00.5]} 3... cxd4 {[%clk 0:02:54]}
4. Nxd4 {[%clk 0:03:01.4]} 4... Nf6 {[%clk 0:02:52.5]} 5. Nc3 {[%clk 0:03:01.6]}
5... e5 {[%clk 0:02:52.6]} 6. Nf5 {[%clk 0:03:01.3]} 6... d6 {[%clk 0:02:41.3]}
7. Ne3 {[%clk 0:03:00]} 7... a6 {[%clk 0:02:10.8]} 8. Bd3 {[%clk 0:02:54]} 8...
g6 {[%clk 0:02:07.7]} 9. O-O {[%clk 0:02:53.6]} 9... Bg7 {[%clk 0:02:07.7]} 10.
Ned5 {[%clk 0:02:53.4]} 10... O-O {[%clk 0:02:06.6]} 11. Bg5 {[%clk 0:02:51.1]}
11... Be6 {[%clk 0:01:54]} 12. Kh1 {[%clk 0:02:32.5]} 12... Bxd5 {[%clk
0:01:32]} 13. Nxd5 {[%clk 0:02:32.1]} 13... Nb8 {[%clk 0:01:30]} 14. f4 {[%clk
0:02:25.5]} 14... Nbd7 {[%clk 0:01:27]} 15. fxe5 {[%clk 0:01:57.7]} 15... dxe5
{[%clk 0:01:24.1]} 16. Nxf6+ {[%clk 0:01:08.4]} 16... Bxf6 {[%clk 0:01:19.1]}
17. Rxf6 {[%clk 0:01:05.4]} 17... Nxf6 {[%clk 0:01:20]} 18. Qf3 {[%clk
0:01:05.2]} 18... Kg7 {[%clk 0:01:15.8]} 19. Rf1 {[%clk 0:01:04.7]} 19... Qb6
{[%clk 0:01:06.1]} 20. Bxf6+ {[%clk 0:01:02.6]} 20... Kg8 {[%clk 0:01:06.2]} 21.
Qg3 {[%clk 0:00:48.9]} 21... Rfc8 {[%clk 0:00:54.6]} 22. Qg5 {[%clk 0:00:46.6]}
22... Rc6 {[%clk 0:00:51.8]} 23. Bxe5 {[%clk 0:00:43.3]} 23... Re8 {[%clk
0:00:31.2]} 24. Bc3 {[%clk 0:00:33.1]} 24... Qc5 {[%clk 0:00:20.6]} 25. Qh6
{[%clk 0:00:30.7]} 25... Qf8 {[%clk 0:00:20.7]} 26. Qf4 {[%clk 0:00:26.5]} 26...
Qe7 {[%clk 0:00:16.3]} 27. Bf6 {[%clk 0:00:22.5]} 27... Qf8 {[%clk 0:00:15.6]}
28. h4 {[%clk 0:00:18.8]} 28... h5 {[%clk 0:00:14.4]} 29. e5 {[%clk 0:00:17.8]}
29... b5 {[%clk 0:00:12.7]} 30. Qg5 {[%clk 0:00:17]} 30... Rec8 {[%clk
0:00:10.8]} 31. Bxg6 {[%clk 0:00:16.1]} 31... Rxf6 {[%clk 0:00:03.2]} 32. Rxf6
{[%clk 0:00:11.4]} 32... Qg7 {[%clk 0:00:01.5]} 33. Bxf7+ {[%clk 0:00:10.1]} 1-0

[Event "*** SCC Grand Prix: Titled Tuesday Blitz"]
[Site "Chess.com"]
[Date "2020.06.23"]
[Round "10"]
[White "Alexander_Donchenko"]
[Black "Radzio1987"]
[Result "1-0"]
[WhiteElo "2707"]
[BlackElo "2854"]
[TimeControl "180+1"]
[EndTime "11:57:16 PDT"]
[Termination "Alexander_Donchenko won by resignation"]

1. e4 {[%clk 0:03:00.9]} 1... c5 {[%clk 0:02:57.7]} 2. Nf3 {[%clk 0:03:00.8]}
2... d6 {[%clk 0:02:57.5]} 3. d4 {[%clk 0:03:00.2]} 3... cxd4 {[%clk 0:02:58.4]}
4. Nxd4 {[%clk 0:03:00.8]} 4... Nf6 {[%clk 0:02:58.6]} 5. Nc3 {[%clk 0:03:01.5]}
5... a6 {[%clk 0:02:58.8]} 6. Be3 {[%clk 0:02:58.3]} 6... e5 {[%clk 0:02:58.3]}
7. Nb3 {[%clk 0:02:58.2]} 7... Be6 {[%clk 0:02:58.2]} 8. f3 {[%clk 0:02:57.7]}
8... Nbd7 {[%clk 0:02:58.1]} 9. Qd2 {[%clk 0:02:57.7]} 9... h5 {[%clk
0:02:57.5]} 10. Nd5 {[%clk 0:02:55.3]} 10... Nxd5 {[%clk 0:02:56.7]} 11. exd5
{[%clk 0:02:56.2]} 11... Bf5 {[%clk 0:02:57]} 12. Bd3 {[%clk 0:02:55.1]} 12...
Bxd3 {[%clk 0:02:53.6]} 13. Qxd3 {[%clk 0:02:56]} 13... Be7 {[%clk 0:02:53.9]}
14. O-O {[%clk 0:02:43.4]} 14... O-O {[%clk 0:02:50.4]} 15. g4 {[%clk
0:02:34.4]} 15... hxg4 {[%clk 0:02:40.5]} 16. fxg4 {[%clk 0:02:35.3]} 16... Bg5
{[%clk 0:02:40.3]} 17. Rf5 {[%clk 0:02:22.2]} 17... Bxe3+ {[%clk 0:02:34.5]} 18.
Qxe3 {[%clk 0:02:23.1]} 18... Rc8 {[%clk 0:02:24.1]} 19. c3 {[%clk 0:02:18.4]}
19... Qb6 {[%clk 0:02:18.8]} 20. Qxb6 {[%clk 0:02:10.9]} 20... Nxb6 {[%clk
0:02:19.7]} 21. Na5 {[%clk 0:02:08.7]} 21... Rc7 {[%clk 0:02:11]} 22. Rf2 {[%clk
0:02:02.5]} 22... Nxd5 {[%clk 0:01:47.3]} 23. Rd1 {[%clk 0:02:00.7]} 23... Nf6
{[%clk 0:01:47.3]} 24. g5 {[%clk 0:01:57.3]} 24... Ne4 {[%clk 0:01:47.3]} 25.
Re2 {[%clk 0:01:54.8]} 25... Nxg5 {[%clk 0:01:47]} 26. Rxd6 {[%clk 0:01:54]}
26... f6 {[%clk 0:01:42.9]} 27. Kg2 {[%clk 0:01:42.5]} 27... Kh7 {[%clk
0:01:23.2]} 28. c4 {[%clk 0:01:33]} 28... Kg6 {[%clk 0:01:22.8]} 29. b4 {[%clk
0:01:31.9]} 29... Rff7 {[%clk 0:01:08.5]} 30. Rxe5 {[%clk 0:01:29.5]} 30... Rfd7
{[%clk 0:01:02.5]} 31. Red5 {[%clk 0:01:24.8]} 31... Re7 {[%clk 0:01:02.5]} 32.
Kf1 {[%clk 0:01:13.7]} 32... Ne4 {[%clk 0:00:56.8]} 33. Rb6 {[%clk 0:01:08.7]}
33... Nc3 {[%clk 0:00:56.9]} 34. Rd2 {[%clk 0:01:02.8]} 34... Ne4 {[%clk
0:00:53]} 35. Rd3 {[%clk 0:01:00.7]} 35... Kf5 {[%clk 0:00:50]} 36. c5 {[%clk
0:00:59]} 36... g5 {[%clk 0:00:48.9]} 37. c6 {[%clk 0:00:47.1]} 37... bxc6
{[%clk 0:00:49]} 38. Nxc6 {[%clk 0:00:48]} 38... Re8 {[%clk 0:00:46.7]} 39. Rxa6
{[%clk 0:00:47]} 39... Kf4 {[%clk 0:00:45.7]} 40. b5 {[%clk 0:00:42.6]} 40... f5
{[%clk 0:00:46.1]} 41. Ra7 {[%clk 0:00:37.6]} 41... Rxa7 {[%clk 0:00:42]} 42.
Nxa7 {[%clk 0:00:38.5]} 42... g4 {[%clk 0:00:34.5]} 43. Nc6 {[%clk 0:00:36.1]}
43... Rh8 {[%clk 0:00:32.1]} 44. b6 {[%clk 0:00:33.6]} 44... Nc5 {[%clk
0:00:28.9]} 45. Rc3 {[%clk 0:00:30.9]} 45... Ne4 {[%clk 0:00:28.7]} 46. Rc2
{[%clk 0:00:25.3]} 46... Nd6 {[%clk 0:00:26.6]} 47. a4 {[%clk 0:00:22.9]} 47...
Ke3 {[%clk 0:00:22.3]} 48. a5 {[%clk 0:00:21.9]} 48... f4 {[%clk 0:00:22]} 49.
a6 {[%clk 0:00:21.9]} 1-0

[Event "*** SCC Grand Prix: Titled Tuesday Blitz"]
[Site "Chess.com"]
[Date "2020.06.23"]
[Round "10"]
[White "ChessicallyInclined"]
[Black "PavelShkapenko"]
[Result "0-1"]
[WhiteElo "2494"]
[BlackElo "2669"]
[TimeControl "180+1"]
[EndTime "11:57:16 PDT"]
[Termination "PavelShkapenko won on time"]

1. d4 {[%clk 0:03:00.9]} 1... Nf6 {[%clk 0:02:59]} 2. c4 {[%clk 0:02:59.5]} 2...
e6 {[%clk 0:02:59.3]} 3. Nc3 {[%clk 0:02:59.3]} 3... Bb4 {[%clk 0:02:59.7]} 4.
e3 {[%clk 0:02:59.1]} 4... c5 {[%clk 0:03:00.1]} 5. Ne2 {[%clk 0:02:59.5]} 5...
cxd4 {[%clk 0:02:55.9]} 6. exd4 {[%clk 0:03:00.4]} 6... O-O {[%clk 0:02:54.9]}
7. a3 {[%clk 0:03:00.2]} 7... Be7 {[%clk 0:02:54.2]} 8. Nf4 {[%clk 0:02:59.7]}
8... d6 {[%clk 0:02:54]} 9. Be3 {[%clk 0:02:57]} 9... Nc6 {[%clk 0:02:49.1]} 10.
d5 {[%clk 0:02:45.5]} 10... exd5 {[%clk 0:02:48.5]} 11. Nfxd5 {[%clk 0:02:38.4]}
11... Nxd5 {[%clk 0:02:48.4]} 12. cxd5 {[%clk 0:02:39.3]} 12... Ne5 {[%clk
0:02:47]} 13. Be2 {[%clk 0:02:38.8]} 13... Re8 {[%clk 0:02:41.4]} 14. O-O {[%clk
0:02:34.3]} 14... Bf5 {[%clk 0:02:41]} 15. b4 {[%clk 0:02:27.9]} 15... Bf6
{[%clk 0:02:39.6]} 16. Rc1 {[%clk 0:02:26.9]} 16... Ng6 {[%clk 0:02:35.1]} 17.
Nb5 {[%clk 0:02:21.8]} 17... Rxe3 {[%clk 0:02:17.4]} 18. fxe3 {[%clk 0:02:20.1]}
18... Bd7 {[%clk 0:02:18]} 19. Nd4 {[%clk 0:02:14.5]} 19... Bg5 {[%clk
0:02:15.4]} 20. Rc3 {[%clk 0:02:08.1]} 20... Qb6 {[%clk 0:02:13.5]} 21. Bg4
{[%clk 0:01:59.5]} 21... Be8 {[%clk 0:01:20.9]} 22. Bf5 {[%clk 0:01:12.6]} 22...
Ne5 {[%clk 0:01:16.7]} 23. Kh1 {[%clk 0:01:12]} 23... g6 {[%clk 0:01:16.4]} 24.
Bh3 {[%clk 0:01:07.9]} 24... a5 {[%clk 0:01:09.5]} 25. Qb3 {[%clk 0:00:55.2]}
25... a4 {[%clk 0:01:01.9]} 26. Qd1 {[%clk 0:00:49.3]} 26... Bb5 {[%clk
0:01:01.9]} 27. Nxb5 {[%clk 0:00:41.7]} 27... Qxb5 {[%clk 0:01:01.9]} 28. Rc8+
{[%clk 0:00:39.1]} 28... Rxc8 {[%clk 0:01:01.4]} 29. Bxc8 {[%clk 0:00:39.7]}
29... Bxe3 {[%clk 0:01:01.1]} 30. Bh3 {[%clk 0:00:34]} 30... Qc4 {[%clk
0:00:49.3]} 31. Qe1 {[%clk 0:00:16.4]} 31... b5 {[%clk 0:00:40.2]} 32. g3 {[%clk
0:00:06.9]} 32... Qxd5+ {[%clk 0:00:26.4]} 33. Bg2 {[%clk 0:00:07.3]} 33... Qd4
{[%clk 0:00:26.9]} 34. Qe2 {[%clk 0:00:05.1]} 34... Nc4 {[%clk 0:00:21.4]} 35.
Rd1 {[%clk 0:00:03.7]} 35... Qe5 {[%clk 0:00:16.8]} 36. Bd5 {[%clk 0:00:01.2]}
36... Bd4 {[%clk 0:00:13.7]} 37. Qf3 {[%clk 0:00:01.5]} 37... Qf6 {[%clk
0:00:11.2]} 0-1

[Event "*** SCC Grand Prix: Titled Tuesday Blitz"]
[Site "Chess.com"]
[Date "2020.06.23"]
[Round "10"]
[White "chess94cu"]
[Black "MarcoRiehle"]
[Result "0-1"]
[WhiteElo "2550"]
[BlackElo "2711"]
[TimeControl "180+1"]
[EndTime "11:57:17 PDT"]
[Termination "MarcoRiehle won by resignation"]

1. d4 {[%clk 0:03:00.9]} 1... d5 {[%clk 0:02:57.7]} 2. c4 {[%clk 0:03:00.8]}
2... e6 {[%clk 0:02:57.8]} 3. Nf3 {[%clk 0:03:00.3]} 3... Nf6 {[%clk 0:02:57.4]}
4. Nc3 {[%clk 0:03:00.9]} 4... c5 {[%clk 0:02:55.8]} 5. e3 {[%clk 0:02:58.7]}
5... cxd4 {[%clk 0:02:55.8]} 6. exd4 {[%clk 0:02:58.3]} 6... Be7 {[%clk
0:02:56.3]} 7. cxd5 {[%clk 0:02:56.3]} 7... Nxd5 {[%clk 0:02:54.8]} 8. Bd3
{[%clk 0:02:56.7]} 8... O-O {[%clk 0:02:55.1]} 9. O-O {[%clk 0:02:56.9]} 9...
Nc6 {[%clk 0:02:54.1]} 10. a3 {[%clk 0:02:52.2]} 10... a6 {[%clk 0:02:52.6]} 11.
Qe2 {[%clk 0:02:51.8]} 11... Bf6 {[%clk 0:02:48.8]} 12. Rd1 {[%clk 0:02:50.2]}
12... b5 {[%clk 0:02:45.7]} 13. Qe4 {[%clk 0:02:47]} 13... g6 {[%clk 0:02:45]}
14. Bh6 {[%clk 0:02:44.4]} 14... Re8 {[%clk 0:02:43.4]} 15. Ne5 {[%clk 0:02:42]}
15... Bb7 {[%clk 0:02:37.4]} 16. Nxd5 {[%clk 0:02:13.6]} 16... exd5 {[%clk
0:02:33.2]} 17. Qf4 {[%clk 0:02:06.8]} 17... Nxe5 {[%clk 0:02:30.5]} 18. dxe5
{[%clk 0:02:07.7]} 18... Bxe5 {[%clk 0:02:30.8]} 19. Qg4 {[%clk 0:02:04.7]}
19... Bc8 {[%clk 0:02:24.7]} 20. Qg5 {[%clk 0:01:51.7]} 20... Qxg5 {[%clk
0:02:22.5]} 21. Bxg5 {[%clk 0:01:52.6]} 21... Bxb2 {[%clk 0:02:22.4]} 22. Ra2
{[%clk 0:01:50.8]} 22... Bg7 {[%clk 0:02:22.4]} 23. Bc2 {[%clk 0:01:50.2]} 23...
Be6 {[%clk 0:02:20.2]} 24. Bb3 {[%clk 0:01:50.3]} 24... d4 {[%clk 0:02:18.8]}
25. Bxe6 {[%clk 0:01:48.8]} 25... Rxe6 {[%clk 0:02:19.7]} 26. Kf1 {[%clk
0:01:44.7]} 26... Rc8 {[%clk 0:02:18.1]} 27. Bd2 {[%clk 0:01:40.4]} 27... h5
{[%clk 0:02:16]} 28. a4 {[%clk 0:01:40]} 28... bxa4 {[%clk 0:02:07.1]} 29. Rxa4
{[%clk 0:01:38.7]} 29... Rc2 {[%clk 0:02:07]} 30. g3 {[%clk 0:01:36.7]} 30...
Kh7 {[%clk 0:01:58.7]} 31. h4 {[%clk 0:01:33.9]} 31... Rb6 {[%clk 0:01:55.5]}
32. Be1 {[%clk 0:01:27.7]} 32... Be5 {[%clk 0:01:49.6]} 33. Ra5 {[%clk
0:01:22.9]} 33... Bf6 {[%clk 0:01:48.9]} 34. Ra4 {[%clk 0:01:14.5]} 34... Rbc6
{[%clk 0:01:48.2]} 35. Bd2 {[%clk 0:01:09]} 35... Kg7 {[%clk 0:01:46.6]} 36. Bg5
{[%clk 0:01:07.4]} 36... Be5 {[%clk 0:01:35.9]} 37. Ra5 {[%clk 0:01:04.5]} 37...
f6 {[%clk 0:01:29.3]} 38. Bd2 {[%clk 0:01:00.7]} 38... Bc7 {[%clk 0:01:22.7]}
39. Rd5 {[%clk 0:00:58.2]} 39... Bb6 {[%clk 0:01:21.1]} 40. Rd7+ {[%clk
0:00:58.2]} 40... Kf8 {[%clk 0:01:19.2]} 41. Bh6+ {[%clk 0:00:58.1]} 41... Ke8
{[%clk 0:01:19]} 42. Rg7 {[%clk 0:00:58.7]} 42... Re6 {[%clk 0:01:16.3]} 43. Rd2
{[%clk 0:00:48.6]} 43... Rxd2 {[%clk 0:01:14.9]} 44. Bxd2 {[%clk 0:00:49]} 44...
f5 {[%clk 0:01:15.4]} 45. Rb7 {[%clk 0:00:42.3]} 45... Kd8 {[%clk 0:01:12.4]}
46. Bf4 {[%clk 0:00:35]} 46... Kc8 {[%clk 0:01:10.4]} 47. Rg7 {[%clk 0:00:32.3]}
47... a5 {[%clk 0:01:09]} 48. Rg8+ {[%clk 0:00:30]} 48... Kb7 {[%clk 0:01:08.3]}
49. Rb8+ {[%clk 0:00:29.5]} 49... Ka7 {[%clk 0:01:06.7]} 50. Rc8 {[%clk
0:00:28.4]} 50... Ka6 {[%clk 0:01:03.4]} 51. Rb8 {[%clk 0:00:23.3]} 51... a4
{[%clk 0:01:02.4]} 52. Ra8+ {[%clk 0:00:21.5]} 52... Ba7 {[%clk 0:01:00.2]} 53.
Bd2 {[%clk 0:00:22.4]} 53... a3 {[%clk 0:00:58.3]} 54. Rc8 {[%clk 0:00:21.6]}
54... a2 {[%clk 0:00:55.8]} 55. Rc1 {[%clk 0:00:21]} 55... Rb6 {[%clk
0:00:56.2]} 56. Rc2 {[%clk 0:00:14]} 56... a1=Q+ {[%clk 0:00:54.5]} 0-1